{"text_format":"3","workbook":"xlsx","n_sheets":1,"sheets":["Planer prazničnog budžeta"],"not_rendered":{"defined_names":1},"read":"whole","date_system":"1900"}

{"sheet":"Planer prazničnog budžeta","index":0,"n_rows":37,"n_cols":12,"rows_kept":37,"merged":[[1,1,7,4],[9,1,9,4],[9,8,9,11],[19,1,19,4],[19,8,19,11],[30,1,30,4],[30,8,30,11]]}
[]
[null,"Planer prazničnog budžeta"]
[]
[{"$nulls":8},"BUDŽET ZA PRAZNIKE",null,{"$f":"SUM(Pokloni[Budžet],Pakovanje[Budžet],(Putovanja[Budžet],(Obroci[Budžet],(Zabava[Budžet],Razno[Budžet]))))","v":{"v":750,"d":"750.00 RSD"}}]
[{"$nulls":8},"STVARNO UTROŠENO",null,{"$f":"SUM((Pokloni[Stvarno],(Pakovanje[Stvarno],(Putovanja[Stvarno],(Obroci[Stvarno],(Zabava[Stvarno],(Razno[Stvarno])))))))","v":{"v":820,"d":"820.00 RSD"}}]
[]
[{"$nulls":8},"RAZLIKA (iznad/ispod budžeta)",null,{"$f":"SUM(K4-K5)","v":{"v":-70,"d":"-70.00 RSD"}}]
[]
[]
[null,"Pokloni",{"$nulls":6},"Praznični obroci"]
[null,"Stavka","Budžet","Stvarno","Razlika",{"$nulls":3},"Stavka","Budžet","Stvarno","Razlika"]
[null,"Porodica",{"v":500,"d":"500.00 RSD"},{"v":495,"d":"495.00 RSD"},{"$f":"Pokloni[[#This Row],[Budžet]]-Pokloni[[#This Row],[Stvarno]]","v":{"v":5,"d":"5.00 RSD"}},{"$nulls":3},"Namirnice",null,null,{"$f":"Obroci[[#This Row],[Budžet]]-Obroci[[#This Row],[Stvarno]]","v":{"v":0,"d":"0.00 RSD"}}]
[null,"Prijatelji",{"v":250,"d":"250.00 RSD"},{"v":325,"d":"325.00 RSD"},{"$f":"Pokloni[[#This Row],[Budžet]]-Pokloni[[#This Row],[Stvarno]]","v":{"v":-75,"d":"-75.00 RSD"}},{"$nulls":3},"Vino",null,null,{"$f":"Obroci[[#This Row],[Budžet]]-Obroci[[#This Row],[Stvarno]]","v":{"v":0,"d":"0.00 RSD"}}]
[null,"Saradnici",null,null,{"$f":"Pokloni[[#This Row],[Budžet]]-Pokloni[[#This Row],[Stvarno]]","v":{"v":0,"d":"0.00 RSD"}},{"$nulls":3},"Ukrasi",null,null,{"$f":"Obroci[[#This Row],[Budžet]]-Obroci[[#This Row],[Stvarno]]","v":{"v":0,"d":"0.00 RSD"}}]
[null,"Nastavnici, dadilje, bebisiterke itd.",null,null,{"$f":"Pokloni[[#This Row],[Budžet]]-Pokloni[[#This Row],[Stvarno]]","v":{"v":0,"d":"0.00 RSD"}},{"$nulls":3},"Ostalo (kartica u poslednjoj koloni ovog reda za dodavanje reda)",null,null,{"$f":"Obroci[[#This Row],[Budžet]]-Obroci[[#This Row],[Stvarno]]","v":{"v":0,"d":"0.00 RSD"}}]
[null,"Dobrotvorne donacije",null,null,{"$f":"Pokloni[[#This Row],[Budžet]]-Pokloni[[#This Row],[Stvarno]]","v":{"v":0,"d":"0.00 RSD"}},{"$nulls":3},"Zbir",{"$f":"SUBTOTAL(109,Obroci[Budžet])","v":{"v":0,"d":"0.00 RSD"}},{"$f":"SUBTOTAL(109,Obroci[Stvarno])","v":{"v":0,"d":"0.00 RSD"}},{"$f":"SUBTOTAL(109,Obroci[Razlika])","v":{"v":0,"d":"0.00 RSD"}}]
[null,"Ostalo (kartica u poslednjoj koloni ovog reda za dodavanje reda)",null,null,{"$f":"Pokloni[[#This Row],[Budžet]]-Pokloni[[#This Row],[Stvarno]]","v":{"v":0,"d":"0.00 RSD"}}]
[null,"Zbir",{"$f":"SUBTOTAL(109,Pokloni[Budžet])","v":{"v":750,"d":"750.00 RSD"}},{"$f":"SUBTOTAL(109,Pokloni[Stvarno])","v":{"v":820,"d":"820.00 RSD"}},{"$f":"SUBTOTAL(109,Pokloni[Razlika])","v":{"v":-70,"d":"-70.00 RSD"}}]
[]
[null,"Pakovanje",{"$nulls":6},"Zabava"]
[null,"Stavka","Budžet","Stvarno","Razlika",{"$nulls":3},"Stavka","Budžet","Stvarno","Razlika"]
[null,"Umotavanje poklona",null,null,{"$f":"Pakovanje[[#This Row],[Budžet]]-Pakovanje[[#This Row],[Stvarno]]","v":{"v":0,"d":"0.00 RSD"}},{"$nulls":3},"Pomoć za žurku (barmen, ketering, čistači itd.)",null,null,{"$f":"Zabava[[#This Row],[Budžet]]-Zabava[[#This Row],[Stvarno]]","v":{"v":0,"d":"0.00 RSD"}}]
[null,"Oznake",null,null,{"$f":"Pakovanje[[#This Row],[Budžet]]-Pakovanje[[#This Row],[Stvarno]]","v":{"v":0,"d":"0.00 RSD"}},{"$nulls":3},"Ukrasi",null,null,{"$f":"Zabava[[#This Row],[Budžet]]-Zabava[[#This Row],[Stvarno]]","v":{"v":0,"d":"0.00 RSD"}}]
[null,"Pribor (traka, samolepljiva traka itd.)",null,null,{"$f":"Pakovanje[[#This Row],[Budžet]]-Pakovanje[[#This Row],[Stvarno]]","v":{"v":0,"d":"0.00 RSD"}},{"$nulls":3},"Hrana i piće",null,null,{"$f":"Zabava[[#This Row],[Budžet]]-Zabava[[#This Row],[Stvarno]]","v":{"v":0,"d":"0.00 RSD"}}]
[null,"Kutije",null,null,{"$f":"Pakovanje[[#This Row],[Budžet]]-Pakovanje[[#This Row],[Stvarno]]","v":{"v":0,"d":"0.00 RSD"}},{"$nulls":3},"Odeća",null,null,{"$f":"Zabava[[#This Row],[Budžet]]-Zabava[[#This Row],[Stvarno]]","v":{"v":0,"d":"0.00 RSD"}}]
[null,"Poštarina",null,null,{"$f":"Pakovanje[[#This Row],[Budžet]]-Pakovanje[[#This Row],[Stvarno]]","v":{"v":0,"d":"0.00 RSD"}},{"$nulls":3},"Karte",null,null,{"$f":"Zabava[[#This Row],[Budžet]]-Zabava[[#This Row],[Stvarno]]","v":{"v":0,"d":"0.00 RSD"}}]
[null,"Ostalo (kartica u poslednjoj koloni ovog reda za dodavanje reda)",null,null,{"$f":"Pakovanje[[#This Row],[Budžet]]-Pakovanje[[#This Row],[Stvarno]]","v":{"v":0,"d":"0.00 RSD"}},{"$nulls":3},"Večere napolju",null,null,{"$f":"Zabava[[#This Row],[Budžet]]-Zabava[[#This Row],[Stvarno]]","v":{"v":0,"d":"0.00 RSD"}}]
[null,"Zbir",{"$f":"SUBTOTAL(109,Pakovanje[Budžet])","v":{"v":0,"d":"0.00 RSD"}},{"$f":"SUBTOTAL(109,Pakovanje[Stvarno])","v":{"v":0,"d":"0.00 RSD"}},{"$f":"SUBTOTAL(109,Pakovanje[Razlika])","v":{"v":0,"d":"0.00 RSD"}},{"$nulls":3},"Ostalo (kartica u poslednjoj koloni ovog reda za dodavanje reda)",null,null,{"$f":"Zabava[[#This Row],[Budžet]]-Zabava[[#This Row],[Stvarno]]","v":{"v":0,"d":"0.00 RSD"}}]
[{"$nulls":8},"Zbir",{"$f":"SUBTOTAL(109,Zabava[Budžet])","v":{"v":0,"d":"0.00 RSD"}},{"$f":"SUBTOTAL(109,Zabava[Stvarno])","v":{"v":0,"d":"0.00 RSD"}},{"$f":"SUBTOTAL(109,Zabava[Razlika])","v":{"v":0,"d":"0.00 RSD"}}]
[]
[null,"Putovanja",{"$nulls":6},"Razno"]
[null,"Stavka","Budžet","Stvarno","Razlika",{"$nulls":3},"Stavka","Budžet","Stvarno","Razlika"]
[null,"Avionska karta",null,null,{"$f":"Putovanja[[#This Row],[Budžet]]-Putovanja[[#This Row],[Stvarno]]","v":{"v":0,"d":"0.00 RSD"}},{"$nulls":3},"Fotografije sa odmora",null,null,{"$f":"Razno[[#This Row],[Budžet]]-Razno[[#This Row],[Stvarno]]","v":{"v":0,"d":"0.00 RSD"}}]
[null,"Smeštaj",null,null,{"$f":"Putovanja[[#This Row],[Budžet]]-Putovanja[[#This Row],[Stvarno]]","v":{"v":0,"d":"0.00 RSD"}},{"$nulls":3},"Gas ",null,null,{"$f":"Razno[[#This Row],[Budžet]]-Razno[[#This Row],[Stvarno]]","v":{"v":0,"d":"0.00 RSD"}}]
[null,"Prevoz",null,null,{"$f":"Putovanja[[#This Row],[Budžet]]-Putovanja[[#This Row],[Stvarno]]","v":{"v":0,"d":"0.00 RSD"}},{"$nulls":3},"Ostalo (kartica u poslednjoj koloni ovog reda za dodavanje reda)",null,null,{"$f":"Razno[[#This Row],[Budžet]]-Razno[[#This Row],[Stvarno]]","v":{"v":0,"d":"0.00 RSD"}}]
[null,"Ostalo (kartica u poslednjoj koloni ovog reda za dodavanje reda)",null,null,{"$f":"Putovanja[[#This Row],[Budžet]]-Putovanja[[#This Row],[Stvarno]]","v":{"v":0,"d":"0.00 RSD"}},{"$nulls":3},"Zbir",{"$f":"SUBTOTAL(109,Razno[Budžet])","v":{"v":0,"d":"0.00 RSD"}},{"$f":"SUBTOTAL(109,Razno[Stvarno])","v":{"v":0,"d":"0.00 RSD"}},{"$f":"SUBTOTAL(109,Razno[Razlika])","v":{"v":0,"d":"0.00 RSD"}}]
[null,"Zbir",{"$f":"SUBTOTAL(109,Putovanja[Budžet])","v":{"v":0,"d":"0.00 RSD"}},{"$f":"SUBTOTAL(109,Putovanja[Stvarno])","v":{"v":0,"d":"0.00 RSD"}},{"$f":"SUBTOTAL(109,Putovanja[Razlika])","v":{"v":0,"d":"0.00 RSD"}}]